bitfinex-derivatives/quotes_SOLF0:USTF0_20250202
["timestamp","ask_amount","ask_price","bid_price","bid_amount"]
[1738528890465,15.054712,203.86,203.75,0.03492394]
[1738528890657,0.89997919,203.85,203.75,0.03492394]
[1738528891058,15.054712,203.86,203.75,0.03492394]
[1738528891059,10.754712,203.86,203.75,0.03492394]
[1738528891258,4.908,203.82,203.76,4.9093]
[1738528892658,4.9076,203.84,203.76,4.9093]
[1738528892858,6.813712,203.86,203.76,40.59449622]
[1738528893165,19.20866866,203.88,203.77,3.8331]
[1738528893462,6.813712,203.88,203.78,1.8338]
[1738528893662,6.813712,203.88,203.8,0.03700616]
[1738528893961,6.813712,203.88,203.87,4.9068]
[1738528894160,6.813712,203.88,203.8,40.63150238]
[1738528894161,6.813712,203.88,203.8,40.59449622]
[1738528894370,6.813712,203.88,203.87,4.9068]
[1738528894762,4.09778,203.93,203.87,4.9068]
[1738528894962,4.9056,203.92,203.86,4.907]
[1738528895262,4.09778,203.93,203.86,4.907]
[1738528895661,4.09778,203.93,203.88,4.9065]
[1738528895862,4.09778,203.93,203.85,0.034635]
[1738528896261,4.09778,203.93,203.92,4.9055]
[1738528896866,5.6815,204.04,203.9,0.03090753]
[1738528896867,12.495212,204.04,203.9,0.03090753]
[1738528897271,12.495212,204.04,203.95,0.03495257]
[1738528897272,4.9033,204.02,203.95,0.03495257]
[1738528897470,12.495212,204.04,203.95,0.03495257]
[1738528897667,13.559092,204.04,203.95,0.03495257]
[1738528898064,7.877592,204.04,203.95,0.03495257]
[1738528898568,1e-08,204.04,204.0,40.59449622]
[1738528898770,40.61110738,204.06,204.0,40.59449622]
[1738528898973,8.21839937,204.06,204.04,40.59449622]
[1738528899171,8.21839937,204.06,204.05,4.9024]
[1738528899369,72.69680382,204.07,204.05,4.9024]
[1738528899570,55.99590382,204.07,204.05,4.9024]
[1738528899866,48.38120382,204.07,204.05,4.9024]
[1738528900072,44.87449622,204.23,204.04,40.59449622]
[1738528900569,44.87449622,204.23,204.08,4.9017]
[1738528900773,4.8998,204.16,204.09,0.03663864]
[1738528901567,4.9005,204.13,204.09,0.03663864]
[1738528901777,40.59449622,204.15,204.09,0.03663864]
[1738528902370,4.9011,204.11,204.09,0.03663864]
[1738528903385,40.59449622,204.15,203.96,40.59449622]
[1738528903575,40.59449622,204.11,203.92,40.59449622]
[1738528903773,44.87449622,204.11,203.92,40.59449622]
[1738528904274,44.87449622,204.15,203.96,40.59449622]
[1738528904474,0.03285774,204.04,203.99,4.93760782]
[1738528904774,9.7928,204.31,203.99,4.93760782]
[1738528904775,40.59449622,204.23,204.0,40.59449622]
[1738528904972,9.7928,204.31,204.11,40.59449622]
[1738528904973,44.87449622,204.31,204.11,40.59449622]
[1738528905270,0.03638314,204.12,204.11,40.59449622]
[1738528905473,4.9,204.15,204.08,4.9015]
[1738528905672,0.0321643,204.14,204.08,4.9015]
[1738528905976,40.59449622,204.23,204.09,0.03498745]
[1738528906172,0.89828265,204.26,204.09,0.03498745]
[1738528906173,0.0324177,204.13,204.09,0.03498745]
[1738528906372,4.9023,204.06,204.02,97.1]
[1738528906873,4.28,204.17,204.02,97.13345005]
[1738528907074,4.9026,204.05,204.02,97.13345005]
[1738528907274,40.59449622,204.15,204.02,97.1]
[1738528907469,0.89869193,204.14,203.93,40.59449622]
[1738528907675,0.03719123,204.06,203.93,40.59449622]
[1738528907868,0.03719123,204.06,203.97,4.9043]
[1738528908068,4.9018,204.08,203.93,40.59449622]
[1738528908368,40.59449622,204.15,203.97,40.59449622]
[1738528908568,0.03418187,204.03,203.97,40.59449622]
[1738528908772,0.03418187,204.03,203.98,4.93704757]
[1738528908972,4.9026,204.05,203.98,4.93704757]
[1738528909174,0.03131367,204.03,203.98,0.03294757]
[1738528909574,0.8988714,204.1,203.89,40.59449622]
[1738528909773,4.9039,203.99,203.98,0.03184514]
[1738528909970,0.03571001,204.03,203.98,0.03184514]
[1738528913179,0.03571001,204.03,203.99,4.9038]
[1738528913674,4.9032,204.02,203.98,0.03184514]
[1738528913979,0.03571001,204.03,203.98,0.03184514]
[1738528914177,40.63020623,204.03,203.83,40.59449622]
[1738528914380,4.9052,203.94,203.83,40.59449622]
[1738528914885,4.9054,203.93,203.83,40.59449622]
[1738528915082,4.28,204.02,203.83,40.59449622]
[1738528915282,0.03663634,203.9,203.86,0.03154789]
[1738528915585,4.28,204.02,203.83,40.59449622]
[1738528915586,4.9048,203.96,203.83,40.59449622]
[1738528915778,0.03196765,203.9,203.86,0.03171087]
[1738528915977,4.28,204.02,203.89,4.9061]
[1738528916177,0.03353896,203.9,203.86,0.03149931]
[1738528916378,4.9048,203.96,203.83,40.59449622]
[1738528916579,0.03437666,203.9,203.87,4.9067]
[1738528916779,0.03437666,203.9,203.86,0.03184335]
[1738528916979,4.28,204.02,203.83,40.59449622]
[1738528917179,0.03184233,203.9,203.89,4.9063]
[1738528917376,4.9047,203.96,203.83,40.59449622]
[1738528917578,40.59449622,204.12,203.92,40.59449622]
[1738528917783,9.7957,204.25,203.97,40.59449622]
[1738528917784,0.89904293,204.11,203.97,40.59449622]
[1738528917977,3.7055,204.15,204.01,40.59449622]
[1738528918278,4.9004,204.14,204.01,40.59449622]
[1738528918784,3.7055,204.15,204.01,40.59449622]
[1738528919080,0.03459325,204.1,204.05,0.03104136]
[1738528919423,3.7055,204.15,204.04,4.9026]
[1738528919680,0.03244468,204.1,204.05,0.03555954]
[1738528920584,0.03244468,204.1,203.92,40.59449622]
[1738528920778,0.8986592,204.12,203.96,40.59449622]
[1738528920980,0.89871779,204.14,204.04,40.59449622]
[1738528921185,3.7055,204.15,204.04,40.59449622]
[1738528921688,4.9006,204.13,204.07,4.9019]
[1738528921889,0.03613724,204.12,204.07,0.03677809]
[1738528922786,4.93693724,204.12,204.07,0.03677809]
[1738528922987,0.03613724,204.12,204.07,0.03677809]
[1738528923485,4.9021,204.07,204.0,4.9034]
[1738528923684,1.9957,204.11,203.95,97.08]
[1738528924489,4.9031,204.03,203.97,4.9043]
[1738528924827,0.03667179,204.05,204.01,0.03634798]
[1738528925389,0.03667179,204.05,204.02,4.9031]
[1738528925886,0.03667179,204.05,204.04,4.9027]
[1738528926087,0.03667179,204.05,204.01,0.03634798]
[1738528926985,0.03667179,204.05,203.95,97.08]
[1738528927179,0.03667179,204.05,203.9,40.59449622]
[1738528927385,0.03667179,204.05,203.89,79.31885926]
[1738528927690,0.89892748,204.08,203.86,119.91335548]
[1738528928388,0.03633933,203.99,203.95,0.03347621]
[1738528928584,0.03633933,203.99,203.96,40.59449622]
[1738528928782,1.9957,204.11,203.96,40.59449622]
[1738528928982,0.03768134,203.99,203.96,40.59449622]
[1738528929182,1.9957,204.11,203.96,40.59449622]
[1738528929383,0.03555106,204.0,203.96,40.59449622]
[1738528929589,1.9957,204.11,203.96,40.59449622]
[1738528929892,0.03404674,204.0,203.96,0.03228371]
[1738528930190,0.03287526,204.0,203.96,0.03322161]
[1738528936401,0.03287526,204.0,203.86,40.59449622]
[1738528936402,4.9047,203.96,203.86,40.59449622]
[1738528936902,4.9044,203.97,203.9,4.9058]
[1738528937301,4.9044,203.97,203.86,40.59449622]
[1738528937501,0.03588369,203.96,203.91,0.03742882]
[1738528937804,0.03588369,203.96,203.95,40.59449622]
[1738528938207,0.03588369,203.96,203.91,0.03742882]
[1738528938504,0.03588369,203.96,203.91,40.63192504]
[1738528939302,0.03588369,203.96,203.91,0.03742882]
[1738528940605,0.03588369,203.96,203.94,4.9048]
[1738528941409,0.03588369,203.96,203.95,4.9048]
[1738528942705,40.59449622,204.16,203.95,40.59449622]
[1738528942911,3.7766,204.11,204.01,40.59449622]
[1738528943101,3.7766,204.11,204.05,40.59449622]
[1738528943307,3.7766,204.11,204.06,4.902]
[1738528943508,3.7766,204.11,204.05,40.59449622]
[1738528943708,4.9012,204.11,204.01,40.59449622]
[1738528944010,0.03568776,204.1,204.06,0.03239819]
[1738528944804,0.03568776,204.1,203.93,40.59449622]
[1738528945007,0.03568776,204.1,204.05,40.59449622]
[1738528945206,3.8374,204.13,204.05,40.59449622]
[1738528945507,8.7381,204.13,204.05,40.59449622]
[1738528945703,3.8374,204.13,204.05,40.59449622]
[1738528946026,0.03599862,204.11,204.07,0.0330499]
[1738528946812,0.03599862,204.11,203.94,40.59449622]
[1738528947007,0.89877139,204.12,203.98,40.59449622]
[1738528947203,3.8374,204.13,203.98,40.59449622]
[1738528947712,4.9027,204.04,203.98,40.59449622]
[1738528947903,0.03722041,204.03,203.99,0.03740841]
[1738528950406,4.9035,204.01,203.99,0.03740841]
[1738528950612,0.03722041,204.03,203.99,0.03740841]
[1738528950913,4.9032,204.02,203.99,0.03740841]
[1738528952109,0.03722041,204.03,203.99,0.03740841]
[1738528952311,0.03722041,204.03,203.99,4.94100841]
[1738528952508,0.03722041,204.03,203.86,40.59449622]
[1738528952710,4.9056,203.92,203.86,40.59449622]
[1738528953006,3.822,204.02,203.82,40.59449622]
[1738528953209,4.9065,203.88,203.82,40.59449622]
[1738528953453,40.59449622,203.96,203.78,166.47479849]
[1738528953711,4.907,203.86,203.85,0.03718125]
[1738528953914,0.03525757,203.89,203.78,125.88030227]
[1738528954106,4.72177718,203.89,203.77,1.83566]
[1738528954306,0.89977718,203.88,203.77,1.83566]
[1738528954916,40.59449622,203.88,203.77,1.83566]
[1738528955115,40.59449622,203.84,203.7,79.31885926]
[1738528955919,40.59449622,203.8,203.7,79.31885926]
[1738528956113,4.9104,203.72,203.7,73.24965926]
[1738528956320,4.9104,203.72,203.7,70.21505926]
[1738528956719,4.91,203.74,203.7,70.21505926]
[1738528957114,4.26,203.75,203.69,0.03171719]
[1738528958319,9.1698,203.75,203.69,0.03171719]
[1738528958521,0.03598015,203.77,203.69,0.03171719]
[1738528958818,0.03598015,203.77,203.7,4.9107]
[1738528959117,0.03598015,203.77,203.69,3.92871719]
[1738528959715,0.03598015,203.77,203.72,4.9103]
[1738528959920,0.03598015,203.77,203.69,3.92871719]
[1738528960424,0.98096919,203.88,203.72,40.59449622]
[1738528960622,5.24096919,203.88,203.69,3.897]
[1738528961524,3.9547,203.87,203.69,3.897]
[1738528961720,0.03309204,203.81,203.76,0.03439101]
[1738528961925,4.9092,203.77,203.76,0.03439101]
[1738528962127,40.62758826,203.81,203.62,1.8464]
[1738528962326,40.59449622,203.77,203.62,1.8464]
[1738528962520,6.1219,203.76,203.58,6.8384]
[1738528962725,40.59449622,203.73,203.58,6.8384]
[1738528963426,0.03527417,203.68,203.63,0.03311196]
[1738528964128,4.94677417,203.68,203.63,0.03311196]
[1738528965128,0.03527417,203.68,203.63,0.03311196]
[1738528966164,4.912,203.66,203.63,0.03311196]
[1738528967123,0.03527417,203.68,203.63,0.03311196]
[1738528969230,40.59449622,203.65,203.49,40.59449622]
[1738528969428,1.8469,203.64,203.48,97.2]
[1738528969729,40.59449622,203.61,203.48,97.2]
[1738528970131,40.59449622,203.61,203.43,1.8569]
[1738528970432,0.03319161,203.54,203.5,0.03456241]
[1738528970635,4.9154,203.51,203.5,0.03456241]
[1738528970823,0.03319161,203.54,203.4,1.8367]
[1738528971028,40.59449622,203.57,203.4,1.8367]
[1738528971229,40.59449622,203.57,203.41,4.9178]
[1738528971932,4.94835458,203.51,203.47,0.03644962]
[1738528972138,0.03265458,203.51,203.47,0.03644962]
[1738528972434,4.9162,203.48,203.47,0.03644962]
[1738528976437,1.9706,203.5,203.35,1.8569]
[1738528976635,4.9176,203.42,203.36,4.9191]
[1738528976833,40.59449622,203.49,203.36,4.9191]
[1738528977035,40.59449622,203.49,203.31,40.59449622]
[1738528977332,40.59449622,203.41,203.18,5.7431]
[1738528977530,40.59449622,203.37,203.18,5.7431]
[1738528977835,4.26,203.38,203.27,0.03721557]
[1738528978038,4.26,203.38,203.25,40.59449622]
[1738528978239,0.03309298,203.35,203.3,0.03268792]
[1738528979631,137.89449622,203.72,203.3,0.03268792]
[1738528979632,4.26,203.51,203.34,40.59449622]
[1738528980074,3.8121,203.5,203.34,40.59449622]
[1738528980842,0.03581717,203.44,203.4,0.03535552]
[1738528981039,4.9154,203.52,203.45,4.9168]
[1738528981435,8.1188,203.59,203.42,40.59449622]
[1738528981637,40.59449622,203.54,203.38,40.59449622]
[1738528981935,40.59449622,203.5,203.3,3.788]
[1738528982181,4.9179,203.41,203.3,3.788]
[1738528982339,40.59449622,203.46,203.38,0.03538487]
[1738528982642,40.59449622,203.46,203.3,3.788]
[1738528982941,0.03756704,203.44,203.4,0.03281821]
[1738528983133,4.95466704,203.44,203.4,0.03281821]
[1738528983539,0.03756704,203.44,203.4,0.03281821]
[1738528983939,9.9813,203.6,203.43,40.59449622]
[1738528984278,4.9143,203.56,203.48,4.9161]
[1738528984441,9.9813,203.6,203.43,40.59449622]
[1738528984640,4.9138,203.58,203.5,4.9155]
[1738528984837,9.9813,203.6,203.43,40.59449622]
[1738528985038,0.03580168,203.56,203.52,0.0335103]
[1738528985744,4.9147,203.54,203.52,0.0335103]
[1738528987542,0.03580168,203.56,203.52,0.0335103]
[1738528987947,5.7635,203.71,203.6,4.9131]
[1738528988246,5.7635,203.71,203.53,40.59449622]
[1738528988247,4.9114,203.68,203.53,44.53379622]
[1738528988637,10.6742,203.71,203.53,44.53379622]
[1738528988947,5.7635,203.71,203.53,44.53379622]
[1738528989147,0.03609595,203.64,203.62,4.9128]
[1738528989442,40.59449622,203.76,203.57,40.59449622]
[1738528989642,40.59449622,203.8,203.61,40.59449622]
[1738528989941,40.59449622,203.76,203.57,40.59449622]
[1738528990446,40.59449622,203.8,203.61,40.59449622]
[1738528990647,0.03676489,203.69,203.64,0.03217438]
[1738528990845,0.03676489,203.69,203.63,4.9124]
[1738528991040,40.59449622,203.72,203.53,44.53379622]
[1738528991241,40.62604547,203.68,203.64,0.03551567]
[1738528991445,40.62604547,203.68,203.53,3.9393]
[1738528991446,4.9131,203.61,203.54,4.9145]
[1738528991648,1.9342,203.67,203.53,3.9393]
[1738528991848,0.03299104,203.63,203.55,0.03141349]
[1738528992044,4.9137,203.59,203.55,0.03141349]
[1738528992241,0.03299104,203.63,203.55,0.03141349]
[1738528993745,0.03299104,203.63,203.57,40.59449622]
[1738528993948,4.26,203.7,203.58,3.9297]
[1738528994147,4.9115,203.68,203.61,4.913]
[1738528994549,4.26,203.7,203.58,3.9297]
[1738528994852,4.26,203.7,203.62,4.9125]
[1738528995046,0.03511359,203.66,203.62,0.03571425]
[1738528995947,4.94641359,203.66,203.62,0.03571425]
[1738528996145,0.03511359,203.66,203.62,0.03571425]
[1738528996544,4.9116,203.65,203.62,0.03571425]
[1738528996751,0.03511359,203.66,203.62,0.03571425]
[1738528997244,4.912,203.63,203.62,0.03571425]
[1738528997446,0.03511359,203.66,203.54,1.9765]
[1738528997649,40.59449622,203.68,203.54,1.9765]
[1738528997853,40.59449622,203.63,203.42,177.84830382]
[1738528998052,2.0113,203.62,203.43,1.9765]
[1738528998450,4.9136,203.57,203.43,1.9765]
[1738528998651,0.03421996,203.56,203.52,0.03331464]
[1738528998960,4.94821996,203.56,203.52,0.03331464]
[1738528999254,0.03421996,203.56,203.52,0.03331464]
[1738529001055,0.03421996,203.56,203.54,4.9142]
[1738529001551,0.03421996,203.56,203.52,0.03331464]
[1738529001758,0.03421996,203.56,203.55,4.914]
[1738529002179,4.9125,203.61,203.54,4.914]
[1738529002454,40.59449622,203.67,203.53,1.9433]
[1738529002853,4.9121,203.63,203.53,1.9433]
[1738529003056,40.59449622,203.67,203.53,1.9433]
[1738529003252,0.03469113,203.6,203.56,0.03326152]
[1738529003758,3.8073,203.69,203.56,0.03326152]
[1738529003953,4.9104,203.7,203.65,4.9115]
[1738529004295,1.8399,203.74,203.65,4.9115]
[1738529004561,40.59449622,203.79,203.6,40.59449622]
[1738529004958,0.03544237,203.72,203.67,0.03588343]
[1738529005562,40.59449622,203.71,203.67,0.03588343]
[1738529005863,4.9108,203.68,203.67,0.03588343]
[1738529006365,1.6082,203.7,203.57,2.0272]
[1738529006561,40.59449622,203.67,203.53,1.9433]
[1738529006959,4.9129,203.6,203.53,1.9433]
[1738529007362,40.59449622,203.67,203.53,1.9433]
[1738529007562,4.94757385,203.59,203.54,0.0362514]
[1738529007763,4.94757385,203.59,203.53,1.9433]
[1738529007963,0.03457385,203.59,203.54,0.03341671]
[1738529008161,3.2734,203.7,203.55,40.59449622]
[1738529008666,4.9114,203.66,203.61,4.9125]
[1738529009366,0.03568107,203.66,203.61,0.03176617]
[1738529010463,1.5654,203.75,203.61,0.03176617]
[1738529010673,1.5183,203.77,203.63,40.59449622]
[1738529010967,40.59449622,203.76,203.6,3.5673]
[1738529011161,40.59449622,203.72,203.51,44.85449622]
[1738529011358,40.59449622,203.72,203.52,3.5673]
[1738529011557,1.8332,203.71,203.52,3.5673]
[1738529011775,0.03742185,203.64,203.6,0.03207438]
[1738529011969,0.03742185,203.64,203.62,4.9121]
[1738529012159,0.03742185,203.64,203.6,0.03207438]
[1738529012469,4.9125,203.61,203.6,0.03207438]
[1738529014269,4.913,203.6,203.47,137.87449622]
[1738529014566,40.59449622,203.64,203.48,3.4099]
[1738529014765,4.9142,203.54,203.49,4.9153]
[1738529014966,40.59449622,203.6,203.47,97.28]
[1738529015161,1.9995,203.59,203.47,97.28]
[1738529015567,0.03413159,203.55,203.51,0.03107347]
[1738529015869,0.03413159,203.55,203.39,40.59449622]
[1738529016060,0.03413159,203.55,203.4,1.6437]
[1738529016266,4.9149,203.52,203.4,1.6437]
[1738529016765,4.9141,203.55,203.4,1.6437]
[1738529016966,0.03388782,203.48,203.44,0.0339164]
[1738529017373,0.03388782,203.48,203.47,4.9159]
[1738529017767,1.9995,203.59,203.44,0.0339164]
[1738529017968,1.9995,203.59,203.43,40.59449622]
[1738529018666,4.914,203.55,203.48,4.9156]
[1738529018863,1.9995,203.59,203.43,40.59449622]
[1738529019072,1.9995,203.59,203.5,4.9152]
[1738529019073,0.03315922,203.54,203.5,4.9152]
[1738529019666,0.03315922,203.54,203.49,0.03114137]
[1738529020369,0.03315922,203.54,203.49,4.94654137]
[1738529020672,4.94735922,203.54,203.49,4.94654137]
[1738529021072,0.03315922,203.54,203.49,0.03114137]
[1738529021273,4.9152,203.5,203.49,0.03114137]
[1738529022576,3.1347,203.53,203.49,0.03114137]
[1738529023174,3.1347,203.53,203.36,3.4591]
[1738529023175,40.59449622,203.52,203.36,3.4591]
[1738529023515,40.59449622,203.48,203.33,1.6288]
[1738529023780,1.8405,203.47,203.33,1.6288]
[1738529023978,6.1005,203.47,203.3,1.6611]
[1738529024376,4.918,203.39,203.36,0.03234832]
[1738529024579,0.03545901,203.41,203.36,0.03234832]
[1738529025279,4.9183,203.37,203.36,0.03234832]
[1738529025672,4.9183,203.37,203.27,80.56830382]
[1738529025673,4.95305901,203.41,203.33,4.9192]
[1738529025872,0.03545901,203.41,203.27,80.56830382]
[1738529026075,1.5583,203.43,203.23,40.59449622]
[1738529026278,4.9183,203.38,203.3,4.9199]
[1738529026479,1.5583,203.43,203.3,4.9199]
[1738529026872,4.9179,203.39,203.23,40.59449622]
[1738529027073,0.03157854,203.39,203.23,40.59449622]
[1738529027277,1.5583,203.43,203.29,0.0370069]
[1738529027478,0.03676428,203.33,203.23,40.59449622]
[1738529027783,1.5583,203.43,203.34,0.03133078]
[1738529028075,0.03734714,203.3,203.18,1.6295]
[1738529028280,40.59449622,203.4,203.18,1.6295]
[1738529028482,0.03708727,203.26,203.22,4.9561119]
[1738529028683,4.26,203.35,203.22,0.03224659]
[1738529028978,0.03212056,203.26,203.18,1.6295]
[1738529029179,4.26,203.35,203.26,0.03446216]
[1738529029482,4.26,203.35,203.18,1.6295]
[1738529029784,4.26,203.35,203.24,0.03146386]
[1738529030083,0.03393597,203.29,203.24,0.03146386]
[1738529030283,4.9212,203.25,203.24,0.03146386]
[1738529033087,4.9206,203.28,203.24,0.03146386]
[1738529033291,0.03393597,203.29,203.24,0.03146386]
[1738529033788,0.03393597,203.29,203.25,4.9212]
[1738529033988,0.03393597,203.29,203.24,0.03146386]
[1738529034789,3.597e-05,203.29,203.24,0.03146386]
[1738529035293,3.597e-05,203.29,203.28,4.9205]
[1738529035683,4.9154,203.5,203.43,4.9168]
[1738529035982,11.75989623,203.55,203.43,4.9168]
[1738529036387,40.59449622,203.56,203.41,4.9172]
[1738529036588,40.59449622,203.56,203.37,40.59449622]
[1738529037096,4.6145,203.57,203.37,40.59449622]
[1738529037097,0.0324694,203.49,203.44,0.03259457]
[1738529037391,0.0324694,203.49,203.42,40.59449622]
[1738529037598,4.6145,203.57,203.49,4.9153]
[1738529037986,0.03692675,203.48,203.42,40.59449622]
[1738529038183,4.6145,203.57,203.51,0.03312507]
[1738529038389,0.03250775,203.47,203.42,40.59449622]
[1738529038590,4.9139,203.56,203.52,0.03559434]
[1738529038792,4.6145,203.57,203.49,4.9154]
[1738529038986,0.03395617,203.56,203.52,0.03763292]
[1738529039424,0.03395617,203.56,203.38,142.53119622]
[1738529039594,40.59449622,203.53,203.38,100.3581]
[1738529040291,4.915,203.51,203.42,4.917]
[1738529040497,1.5049,203.56,203.38,140.95259622]
[1738529040700,0.03465807,203.49,203.44,0.03679602]
[1738529042392,0.03465807,203.49,203.45,4.9163]
[1738529042694,40.59449622,203.48,203.24,60.64572383]
[1738529042891,4.917,203.43,203.36,4.9186]
[1738529043999,0.0370775,203.42,203.38,4.918]
[1738529044296,4.9161,203.47,203.3,40.59449622]
[1738529044493,0.03302987,203.42,203.39,4.9178]
[1738529044689,0.03302987,203.42,203.38,0.03367907]
[1738529046698,0.03302987,203.42,203.41,4.9174]
[1738529046895,2.987e-05,203.42,203.41,4.9174]
[1738529047397,1.4632,203.55,203.5,4.915]
[1738529047599,1.5049,203.56,203.44,40.59449622]
[1738529048602,0.03163862,203.52,203.48,0.03318095]
[1738529048891,3.862e-05,203.52,203.48,40.62767717]
[1738529049093,3.862e-05,203.52,203.51,4.9149]
[1738529052303,3.862e-05,203.52,203.48,0.03318095]
[1738529052801,4.91483862,203.52,203.48,0.03318095]
[1738529053002,3.862e-05,203.52,203.48,0.03318095]
[1738529053399,4.9154,203.49,203.48,0.03318095]
[1738529053601,3.862e-05,203.52,203.48,0.03318095]
[1738529054309,4.9154,203.49,203.48,0.03318095]
[1738529054995,4.9152,203.5,203.48,0.03318095]
[1738529055400,3.862e-05,203.52,203.36,97.36]
[1738529055604,40.59449622,203.52,203.36,97.36]
[1738529056001,4.916,203.47,203.41,4.9173]
[1738529056197,4.916,203.47,203.33,3.1544]
[1738529056396,4.9169,203.44,203.37,4.9181]
[1738529056602,0.0317252,203.43,203.39,0.03547157]
[1738529057001,0.0317252,203.43,203.4,4.9176]
[1738529057510,0.0317252,203.43,203.39,0.03547157]
[1738529058603,0.0317252,203.43,203.42,4.9171]
[1738529058799,0.0317252,203.43,203.39,0.03547157]
[1738529059306,0.0317252,203.43,203.41,4.9171]
[1738529060606,0.0317252,203.43,203.39,0.03547157]
[1738529061105,4.9487252,203.43,203.39,0.03547157]
[1738529062204,0.0317252,203.43,203.39,0.03547157]
[1738529062611,0.0317252,203.43,203.42,4.9171]
[1738529064611,3.0381,203.55,203.39,40.62996779]
[1738529064810,40.59449622,203.61,203.43,40.59449622]
[1738529065127,40.59449622,203.61,203.44,1.5308]
[1738529065314,40.59449622,203.61,203.39,40.59449622]
[1738529065315,1.5817,203.6,203.39,40.59449622]
[1738529065510,40.59449622,203.56,203.39,40.59449622]
[1738529065709,4.9151,203.51,203.39,40.59449622]
[1738529065915,0.03388233,203.5,203.46,4.9161]
[1738529067615,0.03388233,203.5,203.49,4.9154]
[1738529067821,8.233e-05,203.5,203.49,4.9154]
[1738529068213,8.233e-05,203.5,203.46,1.4529]
[1738529068417,8.233e-05,203.5,203.48,4.9157]
[1738529068713,8.233e-05,203.5,203.46,1.4529]
[1738529068917,8.233e-05,203.5,203.49,4.9154]
[1738529069713,8.233e-05,203.5,203.46,1.4529]
[1738529070621,8.233e-05,203.5,203.48,4.9154]
[1738529071020,8.233e-05,203.5,203.46,1.4529]
[1738529071218,8.233e-05,203.5,203.47,4.9159]
[1738529071520,8.233e-05,203.5,203.45,0.03768689]
[1738529072021,4.9154,203.49,203.45,0.03768689]
[1738529072723,4.9154,203.49,203.45,4.95408689]
[1738529072922,8.233e-05,203.5,203.45,0.03768689]
[1738529073324,8.233e-05,203.5,203.47,4.9157]
[1738529073527,8.233e-05,203.5,203.45,0.03768689]
[1738529073820,8.233e-05,203.5,203.49,4.9154]
[1738529075725,8.233e-05,203.5,203.47,4.9158]
[1738529077026,4.91538233,203.5,203.45,4.95388689]
[1738529077626,4.91538233,203.5,203.46,4.9161]
[1738529078030,8.233e-05,203.5,203.46,4.9161]
[1738529078330,8.233e-05,203.5,203.45,0.03768689]
[1738529078630,4.91528233,203.5,203.45,0.03768689]
[1738529078943,8.233e-05,203.5,203.45,0.03768689]
[1738529079228,1.5817,203.6,203.49,25.04650999]
[1738529079829,6.4945,203.6,203.56,4.9137]
[1738529080030,1.5817,203.6,203.56,4.9137]
[1738529080431,1.61944591,203.6,203.56,4.94852942]
[1738529080932,1.61944591,203.6,203.56,0.03482942]
[1738529081931,1.61944591,203.6,203.57,4.9135]
[1738529083028,1.61944591,203.6,203.56,0.03482942]
[1738529083228,1.61944591,203.6,203.46,1.4565]
[1738529083229,26.6659559,203.6,203.46,1.4565]
[1738529083429,26.62820999,203.6,203.46,1.4565]
[1738529083632,26.62820999,203.6,203.41,2.9856]
[1738529083833,26.62820999,203.6,203.41,4.5346]
[1738529084331,0.03390511,203.53,203.48,0.03593905]
[1738529084834,0.03390511,203.53,203.5,4.915]
[1738529085631,0.03390511,203.53,203.48,0.03593905]
[1738529085833,0.03390511,203.53,203.52,4.9147]
[1738529092852,1.5813,203.66,203.52,25.04650999]
[1738529093047,1.5813,203.66,203.56,25.04650999]
[1738529093338,3.0429,203.71,203.6,25.04650999]
[1738529093740,53.750008,203.74,203.64,25.04650999]
[1738529094044,53.750008,203.74,203.61,25.04650999]
[1738529094045,53.750008,203.74,203.73,4.9096]
[1738529094234,133.42108552,203.77,203.72,25.04650999]
[1738529094441,73.47320056,203.77,203.76,29.95540999]
[1738529094740,41.98610801,203.77,203.76,45.4652245]
[1738529094956,0.03600745,203.77,203.72,40.59151576]
[1738529095235,0.03600745,203.77,203.75,4.9091]
[1738529095434,7.45e-06,203.77,203.75,4.9091]
[1738529095633,54.45860452,203.85,203.8,4.9078]
[1738529095833,54.45860452,203.85,203.76,40.5563245]
[1738529096546,4.4609,203.9,203.76,40.5563245]
[1738529096940,0.03671557,203.83,203.79,4.908]
[1738529097244,0.03671557,203.83,203.74,80.56830382]
[1738529097545,0.03671557,203.83,203.79,0.03241995]
[1738529097735,0.03671557,203.83,203.8,40.5563245]
[1738529097939,0.03671557,203.83,203.81,4.9077]
[1738529098145,1.557e-05,203.83,203.81,4.9077]
[1738529098446,1.4614,203.97,203.8,40.5563245]
[1738529098643,4.9047,203.94,203.84,40.5563245]
[1738529099176,1.4614,203.97,203.81,4.9075]